fUSD/lending_fUSD_20250120
["ID","MTS","AMOUNT","RATE_DAILY","PERIOD"]
[349756096,1737414640663,-500.0,0.00019178,2]
[349756098,1737414640672,-2274.58,0.00019178,2]
[349756100,1737414640681,-1876.38,0.00019178,2]
[349756102,1737414640691,-500.0,0.00019178,2]
[349756104,1737414640700,-891.99,0.00019178,2]
[349756106,1737414640712,-500.0,0.00019178,2]
[349756108,1737414640721,-500.0,0.00019178,2]
[349756110,1737414640731,-500.0,0.00019178,2]
[349756112,1737414640740,-2072.24,0.00019178,2]
[349756114,1737414640749,-860.47,0.00019178,2]
[349756116,1737414640759,-1019.64,0.00019178,2]
[349756118,1737414640769,-1380.18,0.00019178,2]
[349756119,1737414640778,-500.0,0.00019178,2]
[349756120,1737414640787,-500.0,0.00019178,2]
[349756121,1737414640796,-500.0,0.00019178,2]
[349756122,1737414640805,-500.0,0.00019178,2]
[349756123,1737414640814,-569.93,0.00019178,2]
[349756124,1737414640823,-835.44,0.00019178,2]
[349756125,1737414640832,-500.0,0.00019178,2]
[349756126,1737414640841,-1403.83,0.00019178,2]
[349756127,1737414640850,-500.0,0.00019178,2]
[349756128,1737414640862,-890.53,0.00019178,2]
[349756129,1737414640871,-500.0,0.00019178,2]
[349756130,1737414640880,-509.99,0.00019178,2]
[349756131,1737414640889,-500.0,0.00019178,2]
[349756132,1737414640898,-2907.81,0.00019178,2]
[349756133,1737414640907,-500.0,0.00019178,2]
[349756134,1737414640916,-998.81,0.00019178,2]
[349756135,1737414640925,-500.0,0.00019178,2]
[349756137,1737414640935,-1097.25,0.00019178,2]
[349756138,1737414640944,-500.0,0.00019178,2]
[349756140,1737414640953,-500.0,0.00019178,2]
[349756142,1737414640962,-502.16683918,0.00019178,2]
[349756144,1737414640971,-612.32,0.00019178,2]
[349756146,1737414640980,-445.52714583,0.00019178,2]
[349756148,1737414640990,-500.0,0.00019178,2]
[349756150,1737414640999,-599.08,0.00019178,2]
[349756152,1737414641009,-500.0,0.00019178,2]
[349756154,1737414641018,-2063.22,0.00019178,2]
[349756156,1737414641027,-500.53065654,0.00019178,2]
[349756158,1737414641036,-1287.56,0.00019178,2]
[349756160,1737414641045,-500.0,0.00019178,2]
[349756162,1737414641055,-1714.26,0.00019178,2]
[349756164,1737414641064,-500.0,0.00019178,2]
[349756166,1737414641073,-500.0,0.00019178,2]
[349756168,1737414641082,-501.42224557,0.00019178,2]
[349756170,1737414641091,-500.94378091,0.00019178,2]
[349756171,1737414641100,-500.0,0.00019178,2]
[349756173,1737414641112,-624.59,0.00019178,2]
[349756176,1737414641121,-500.0,0.00019178,2]
[349756177,1737414641130,-500.0,0.00019178,2]
[349756179,1737414641140,-500.0,0.00019178,2]
[349756181,1737414641150,-1603.15,0.00019178,2]
[349756183,1737414641159,-500.0,0.00019178,2]
[349756185,1737414641168,-500.0,0.00019178,2]
[349756187,1737414641177,-500.0,0.00019178,2]
[349756189,1737414641186,-500.0,0.00019178,2]
[349756191,1737414641195,-525.89888451,0.00019178,2]
[349756193,1737414641204,-562.37,0.00019178,2]
[349756195,1737414641213,-500.0,0.00019178,2]
[349756197,1737414641222,-500.0,0.00019178,2]
[349756199,1737414641231,-1837.67,0.00019178,2]
[349756201,1737414641240,-647.43938212,0.00019178,2]
[349756203,1737414641249,-500.0,0.00019178,2]
[349756205,1737414641259,-500.0,0.00019178,2]
[349756207,1737414641268,-597.92,0.00019178,2]
[349756209,1737414641277,-500.0,0.00019178,2]
[349756211,1737414641287,-624.0,0.00019178,2]
[349756213,1737414641296,-500.0,0.00019178,2]
[349756215,1737414641305,-600.72,0.00019178,2]
[349756217,1737414641314,-578.21140733,0.00019178,2]
[349756219,1737414641323,-1545.64,0.00019178,2]
[349756221,1737414641332,-807.86,0.00019178,2]
[349756223,1737414641342,-500.0,0.00019178,2]
[349756225,1737414641351,-500.0,0.00019178,2]
[349756227,1737414641363,-502.6940688,0.00019178,2]
[349756229,1737414641372,-500.0,0.00019178,2]
[349756231,1737414641381,-500.0,0.00019178,2]
[349756233,1737414641391,-500.0,0.00019178,2]
[349756235,1737414641400,-517.43,0.00019178,2]
[349756237,1737414641409,-500.0,0.00019178,2]
[349756239,1737414641418,-500.0,0.00019178,2]
[349756241,1737414641427,-500.0,0.00019178,2]
[349756243,1737414641437,-500.0,0.00019178,2]
[349756245,1737414641446,-1290.23,0.00019178,2]
[349756247,1737414641455,-500.0,0.00019178,2]
[349756249,1737414641464,-1839.16,0.00019178,2]
[349756251,1737414641473,-500.0,0.00019178,2]
[349756253,1737414641482,-500.0,0.00019178,2]
[349756255,1737414641491,-1177.1,0.00019178,2]
[349756257,1737414641502,-500.0,0.00019178,2]
[349756258,1737414641511,-1103.41,0.00019178,2]
[349756260,1737414641523,-500.0,0.00019178,2]
[349756262,1737414641533,-500.0,0.00019178,2]
[349756264,1737414641542,-259.73555083,0.00019178,2]
[349756266,1737414641552,-174.48281375,0.00019178,2]
[349756269,1737414641563,-5000.0,0.00019351,2]
[349756271,1737414641572,-189.22168766,0.00019352,2]
[349756273,1737414641581,-9172.44796979,0.00019352,2]
[349756274,1737414641590,-55555.0,0.00019352,2]
[349756276,1737414641600,-171.78,0.00019372,2]
[349756278,1737414641610,-9564.3090081,0.00019392,2]
[349756280,1737414641619,-500.0,0.00019451,2]
[349756282,1737414641628,-1478.72,0.00019451,2]
[349756284,1737414641637,-506.92,0.00019451,2]
[349756286,1737414641646,-500.0,0.00019451,2]
[349756288,1737414641655,-500.0,0.00019451,2]
[349756290,1737414641664,-500.0,0.00019451,2]
[349756292,1737414641673,-646.84,0.00019451,2]
[349756294,1737414641682,-570.17,0.00019451,2]
[349756296,1737414641695,-500.0,0.00019451,2]
[349756298,1737414641704,-976.51,0.00019451,2]
[349756300,1737414641713,-698.99,0.00019451,2]
[349756302,1737414641722,-1663.5,0.00019451,2]
[349756304,1737414641731,-551.19,0.00019451,2]
[349756306,1737414641740,-3269.84,0.00019451,2]
[349756308,1737414641750,-518.89,0.00019451,2]
[349756310,1737414641759,-552.72,0.00019451,2]
[349756312,1737414641768,-1752.0,0.00019451,2]
[349756314,1737414641777,-500.0,0.00019451,2]
[349756316,1737414641786,-565.08,0.00019451,2]
[349756318,1737414641795,-872.02,0.00019451,2]
[349756320,1737414641804,-1444.7,0.00019451,2]
[349756322,1737414641813,-500.0,0.00019451,2]
[349756324,1737414641822,-1000.0,0.00019451,2]
[349756326,1737414641832,-1042.81,0.00019451,2]
[349756328,1737414641841,-500.0,0.00019451,2]
[349756330,1737414641850,-500.0,0.00019452,2]
[349756332,1737414641861,-500.0,0.00019452,2]
[349756334,1737414641870,-500.0,0.00019452,2]
[349756336,1737414641879,-500.0,0.00019452,2]
[349756338,1737414641888,-500.0,0.00019452,2]
[349756340,1737414641897,-500.0,0.00019452,2]
[349756342,1737414641906,-500.0,0.00019452,2]
[349756343,1737414641916,-500.0,0.00019452,2]
[349756345,1737414641925,-500.0,0.00019452,2]
[349756348,1737414641934,-500.0,0.00019452,2]
[349756349,1737414641944,-500.0,0.00019452,2]
[349756351,1737414641953,-500.0,0.00019452,2]
[349756353,1737414641962,-500.0,0.00019452,2]
[349756355,1737414641971,-500.0,0.00019452,2]
[349756357,1737414641981,-500.0,0.00019452,2]
[349756359,1737414641990,-500.0,0.00019452,2]
[349756361,1737414642000,-469.83225263,0.00019452,2]
[349756363,1737414642009,-500.0,0.00019452,2]
[349756365,1737414642019,-506.46,0.00019452,2]
[349756367,1737414642028,-500.0,0.00019452,2]
[349756370,1737414642038,-500.0,0.00019452,2]
[349756371,1737414642047,-500.0,0.00019452,2]
[349756374,1737414642057,-582.69731645,0.00019452,2]
[349756376,1737414642066,-500.0,0.00019452,2]
[349756377,1737414642075,-500.0,0.00019452,2]
[349756380,1737414642084,-500.0,0.00019452,2]
[349756381,1737414642093,-500.0,0.00019452,2]
[349756383,1737414642103,-500.0,0.00019452,2]
[349756385,1737414642116,-500.0,0.00019452,2]
[349756387,1737414642125,-500.0,0.00019452,2]
[349756389,1737414642135,-500.0,0.00019452,2]
[349756391,1737414642145,-500.0,0.00019452,2]
[349756394,1737414642155,-885.11,0.00019452,2]
[349756396,1737414642164,-500.0,0.00019452,2]
[349756397,1737414642174,-500.0,0.00019452,2]
[349756400,1737414642183,-500.0,0.00019452,2]
[349756402,1737414642192,-500.0,0.00019452,2]
[349756403,1737414642201,-500.0,0.00019452,2]
[349756405,1737414642210,-500.0,0.00019452,2]
[349756407,1737414642219,-500.0,0.00019452,2]
[349756409,1737414642229,-500.0,0.00019452,2]
[349756412,1737414642238,-500.0,0.00019452,2]
[349756413,1737414642247,-500.0,0.00019452,2]
[349756415,1737414642257,-500.0,0.00019452,2]
[349756417,1737414642266,-500.0,0.00019452,2]
[349756419,1737414642275,-500.0,0.00019452,2]
[349756421,1737414642284,-500.0,0.00019452,2]
[349756423,1737414642294,-500.0,0.00019452,2]
[349756425,1737414642303,-500.0,0.00019452,2]
[349756428,1737414642315,-500.0,0.00019452,2]
[349756430,1737414642325,-500.0,0.00019452,2]
[349756432,1737414642335,-500.0,0.00019452,2]
[349756434,1737414642344,-500.0,0.00019452,2]
[349756436,1737414642353,-500.0,0.00019452,2]
[349756438,1737414642365,-500.0,0.00019452,2]
[349756439,1737414642375,-565.61,0.00019452,2]
[349756442,1737414642384,-500.0,0.00019452,2]
[349756444,1737414642393,-500.0,0.00019452,2]
[349756445,1737414642403,-500.0,0.00019452,2]
[349756447,1737414642412,-500.0,0.00019452,2]
[349756449,1737414642422,-255.789155,0.00019452,2]
[349756451,1737414642431,-502.05476563,0.00019452,2]
[349756453,1737414642440,-500.0,0.00019452,2]
[349756454,1737414642449,-500.0,0.00019452,2]
[349756456,1737414642459,-500.0,0.00019452,2]
[349756458,1737414642468,-500.0,0.00019452,2]
[349756460,1737414642477,-574.2,0.00019452,2]
[349756462,1737414642486,-500.0,0.00019452,2]
[349756463,1737414642495,-500.0,0.00019452,2]
[349756464,1737414642504,-500.0,0.00019452,2]
[349756466,1737414642515,-506.07698049,0.00019452,2]
[349756468,1737414642526,-334.392464,0.00019452,2]
[349756470,1737414642537,-500.0,0.00019452,2]
[349756472,1737414642546,-500.0,0.00019452,2]
[349756473,1737414642555,-500.0,0.00019452,2]
[349756476,1737414642564,-500.0,0.00019452,2]
[349756478,1737414642574,-500.0,0.00019452,2]
[349756480,1737414642583,-500.0,0.00019452,2]
[349756482,1737414642594,-500.0,0.00019452,2]
[349756484,1737414642603,-500.0,0.00019452,2]
[349756486,1737414642614,-500.0,0.00019452,2]
[349756487,1737414642624,-500.0,0.00019452,2]
[349756488,1737414642634,-500.0,0.00019452,2]
[349756489,1737414642644,-500.0,0.00019452,2]
[349756490,1737414642653,-316.05347278,0.00019452,2]
[349756491,1737414642663,-462.57385728,0.00019452,2]
[349756492,1737414642826,-500.0,0.00019452,2]
[349756493,1737414642835,-151.34589074,0.00019452,2]
[349756494,1737414642845,-500.0,0.00019452,2]
[349756495,1737414642854,-500.0,0.00019452,2]
[349756496,1737414642864,-500.0,0.00019452,2]
[349756497,1737414642874,-412.9,0.00019452,2]
[349756498,1737414642884,-500.0,0.00019452,2]
[349756499,1737414642893,-500.0,0.00019452,2]
[349756500,1737414642903,-5000.0,0.00019452,2]
[349756501,1737414642912,-500.0,0.00019452,2]
[349756502,1737414642921,-500.0,0.00019452,2]
[349756503,1737414642930,-500.0,0.00019452,2]
[349756504,1737414642940,-500.0,0.00019452,2]
[349756505,1737414642950,-500.0,0.00019452,2]
[349756506,1737414642959,-500.0,0.00019452,2]
[349756507,1737414642968,-500.0,0.00019452,2]
[349756508,1737414642977,-500.0,0.00019452,2]
[349756509,1737414642987,-500.0,0.00019452,2]
[349756510,1737414642996,-500.0,0.00019452,2]
[349756511,1737414643005,-500.0,0.00019452,2]
[349756512,1737414643014,-511.45541298,0.00019452,2]
[349756513,1737414643024,-500.0,0.00019452,2]
[349756514,1737414643034,-500.0,0.00019452,2]
[349756515,1737414643043,-500.0,0.00019452,2]
[349756516,1737414643053,-500.0,0.00019452,2]
[349756517,1737414643062,-500.0,0.00019452,2]
[349756518,1737414643072,-500.0,0.00019452,2]
[349756519,1737414643082,-500.0,0.00019452,2]
[349756520,1737414643091,-500.0,0.00019452,2]
[349756521,1737414643101,-500.0,0.00019452,2]
[349756522,1737414643111,-500.0,0.00019452,2]
[349756523,1737414643120,-500.0,0.00019452,2]
[349756524,1737414643130,-500.0,0.00019452,2]
[349756525,1737414643140,-449.11383217,0.00019452,2]
[349756526,1737414643149,-500.0,0.00019452,2]
[349756527,1737414643159,-500.0,0.00019452,2]
[349756528,1737414643168,-500.0,0.00019452,2]
[349756529,1737414643177,-500.96,0.00019452,2]
[349756530,1737414643186,-500.0,0.00019452,2]
[349756531,1737414643195,-500.0,0.00019452,2]
[349756532,1737414643204,-500.0,0.00019452,2]
[349756533,1737414643213,-500.0,0.00019452,2]
[349756534,1737414643222,-500.0,0.00019452,2]
[349756535,1737414643231,-500.0,0.00019452,2]
[349756536,1737414643240,-500.0,0.00019452,2]
[349756537,1737414643250,-500.0,0.00019452,2]
[349756538,1737414643259,-500.0,0.00019452,2]
[349756539,1737414643268,-500.0,0.00019452,2]
[349756540,1737414643277,-500.0,0.00019452,2]
[349756541,1737414643285,-500.0,0.00019452,2]
[349756542,1737414643295,-500.0,0.00019452,2]
[349756543,1737414643303,-500.0,0.00019452,2]
[349756544,1737414643312,-500.0,0.00019452,2]
[349756545,1737414643322,-500.0,0.00019452,2]
[349756546,1737414643331,-500.0,0.00019452,2]
[349756547,1737414643340,-500.0,0.00019452,2]
[349756548,1737414643349,-500.0,0.00019452,2]
[349756549,1737414643361,-500.0,0.00019452,2]
[349756550,1737414643370,-500.0,0.00019452,2]
[349756552,1737414643379,-500.0,0.00019452,2]
[349756554,1737414643388,-519.52,0.00019452,2]
[349756556,1737414643398,-500.0,0.00019452,2]
[349756558,1737414643407,-500.0,0.00019452,2]
[349756559,1737414643416,-500.0,0.00019452,2]
[349756561,1737414643425,-401.6131211,0.00019452,2]
[349756563,1737414643434,-500.0,0.00019452,2]
[349756565,1737414643443,-500.0,0.00019452,2]
[349756567,1737414643452,-500.0,0.00019452,2]
[349756569,1737414643461,-500.0,0.00019452,2]
[349756571,1737414643471,-500.0,0.00019452,2]
[349756573,1737414643480,-500.0,0.00019452,2]
[349756575,1737414643489,-500.0,0.00019452,2]
[349756577,1737414643498,-500.0,0.00019452,2]
[349756579,1737414643507,-500.0,0.00019452,2]
[349756581,1737414643519,-500.0,0.00019452,2]
[349756582,1737414643529,-1536.87,0.00019452,2]
[349756583,1737414643538,-500.0,0.00019452,2]
[349756584,1737414643547,-500.0,0.00019452,2]
[349756585,1737414643557,-500.0,0.00019452,2]
[349756586,1737414643566,-500.0,0.00019452,2]
[349756587,1737414643575,-500.0,0.00019452,2]
[349756588,1737414643584,-500.0,0.00019452,2]
[349756589,1737414643595,-1393.31,0.00019452,2]
[349756590,1737414643604,-500.0,0.00019452,2]
[349756591,1737414643614,-500.0,0.00019452,2]
[349756592,1737414643623,-500.0,0.00019452,2]
[349756593,1737414643633,-500.0,0.00019452,2]
[349756594,1737414643642,-500.0,0.00019452,2]
[349756595,1737414643651,-500.0,0.00019452,2]
[349756596,1737414643660,-500.0,0.00019452,2]
[349756597,1737414643670,-500.0,0.00019452,2]
[349756598,1737414643679,-500.0,0.00019452,2]
[349756599,1737414643688,-1529.01,0.00019452,2]
[349756600,1737414643697,-500.0,0.00019452,2]
[349756601,1737414643706,-500.0,0.00019452,2]
[349756602,1737414643715,-500.0,0.00019452,2]
[349756603,1737414643724,-500.0,0.00019452,2]
[349756604,1737414643733,-832.48,0.00019452,2]
[349756605,1737414643742,-670.79,0.00019452,2]
[349756606,1737414643751,-598.74,0.00019452,2]
[349756607,1737414643761,-1030.25,0.00019452,2]
[349756608,1737414643770,-1530.61,0.00019452,2]
[349756609,1737414643779,-576.89,0.00019452,2]
[349756610,1737414643788,-686.52,0.00019452,2]
[349756611,1737414643797,-500.0,0.00019452,2]
[349756612,1737414643806,-857.02,0.00019452,2]
[349756613,1737414643816,-500.0,0.00019452,2]
[349756614,1737414643824,-500.0,0.00019452,2]
[349756615,1737414643834,-632.97,0.00019452,2]
[349756616,1737414643843,-500.0,0.00019452,2]
[349756617,1737414643852,-500.0,0.00019452,2]
[349756618,1737414643862,-1665.63,0.00019452,2]
[349756619,1737414643873,-744.2,0.00019452,2]
[349756620,1737414643884,-750.3,0.00019452,2]
[349756621,1737414643893,-500.0,0.00019452,2]
[349756622,1737414643902,-1018.98,0.00019452,2]
[349756623,1737414643911,-1603.12,0.00019452,2]
[349756624,1737414643921,-792.37,0.00019452,2]
[349756625,1737414643930,-796.06,0.00019452,2]
[349756626,1737414643939,-500.0,0.00019452,2]
[349756627,1737414643948,-1603.27,0.00019452,2]
[349756628,1737414643958,-1763.88,0.00019452,2]
[349756629,1737414643967,-500.0,0.00019452,2]
[349756630,1737414643976,-500.0,0.00019452,2]
[349756631,1737414643986,-679.29,0.00019452,2]
[349756632,1737414643995,-780.06,0.00019452,2]
[349756633,1737414644004,-500.0,0.00019452,2]
[349756634,1737414644014,-500.0,0.00019452,2]
[349756635,1737414644023,-617.16,0.00019452,2]
[349756636,1737414644032,-2476.04,0.00019452,2]
[349756637,1737414644041,-500.0,0.00019452,2]
[349756638,1737414644051,-1636.24,0.00019452,2]
[349756639,1737414644059,-1187.47,0.00019452,2]
[349756640,1737414644069,-500.0,0.00019452,2]
[349756641,1737414644078,-825.56,0.00019452,2]
[349756642,1737414644087,-2476.64,0.00019452,2]
[349756643,1737414644097,-500.0,0.00019452,2]
[349756644,1737414644106,-1139.4,0.00019452,2]
[349756645,1737414644117,-830.8,0.00019452,2]
[349756646,1737414644126,-1178.79,0.00019452,2]
[349756647,1737414644136,-500.0,0.00019452,2]
[349756648,1737414644145,-2274.58,0.00019452,2]
[349756649,1737414644155,-1876.38,0.00019452,2]
[349756650,1737414644164,-500.0,0.00019452,2]
[349756651,1737414644174,-891.99,0.00019452,2]
[349756652,1737414644184,-500.0,0.00019452,2]
[349756653,1737414644193,-500.0,0.00019452,2]
[349756654,1737414644203,-2072.24,0.00019452,2]
[349756655,1737414644211,-860.47,0.00019452,2]
[349756656,1737414644221,-1019.64,0.00019452,2]
[349756657,1737414644230,-1380.18,0.00019452,2]
[349756658,1737414644239,-500.0,0.00019452,2]
[349756659,1737414644248,-500.0,0.00019452,2]
[349756660,1737414644256,-500.0,0.00019452,2]
[349756661,1737414644265,-569.93,0.00019452,2]
[349756662,1737414644274,-835.44,0.00019452,2]
[349756663,1737414644283,-500.0,0.00019452,2]
[349756664,1737414644291,-1403.83,0.00019452,2]
[349756665,1737414644300,-539.74849268,0.00019452,2]
[349756666,1737414644310,-890.53,0.00019452,2]
[349756667,1737414644318,-509.99,0.00019452,2]
[349756668,1737414644327,-500.0,0.00019452,2]
[349756669,1737414644336,-2907.81,0.00019452,2]
[349756670,1737414644345,-500.0,0.00019452,2]
[349756671,1737414644354,-998.81,0.00019452,2]
[349756672,1737414644363,-500.89400238,0.00019452,2]
[349756673,1737414644373,-1097.25,0.00019452,2]
[349756674,1737414644381,-536.81854637,0.00019452,2]
[349756675,1737414644391,-612.32,0.00019452,2]
[349756676,1737414644400,-500.0,0.00019452,2]
[349756677,1737414644409,-599.08,0.00019452,2]
[349756678,1737414644418,-500.0,0.00019452,2]
[349756679,1737414644427,-2063.22,0.00019452,2]
[349756680,1737414644436,-1287.56,0.00019452,2]
[349756681,1737414644445,-500.0,0.00019452,2]
[349756682,1737414644454,-1714.26,0.00019452,2]
[349756683,1737414644463,-500.0,0.00019452,2]
[349756684,1737414644472,-500.0,0.00019452,2]
[349756685,1737414644482,-624.59,0.00019452,2]
[349756686,1737414644491,-500.0,0.00019452,2]
[349756687,1737414644500,-500.0,0.00019452,2]
[349756688,1737414644508,-500.0,0.00019452,2]
[349756689,1737414644521,-1603.15,0.00019452,2]
[349756690,1737414644530,-500.0,0.00019452,2]
[349756691,1737414644539,-500.0,0.00019452,2]
[349756692,1737414644549,-500.0,0.00019452,2]
[349756693,1737414644559,-500.0,0.00019452,2]
[349756694,1737414644568,-1837.67,0.00019452,2]
[349756695,1737414644578,-500.0,0.00019452,2]
[349756696,1737414644587,-500.0,0.00019452,2]
[349756697,1737414644597,-624.0,0.00019452,2]
[349756698,1737414644607,-500.0,0.00019452,2]
[349756699,1737414644617,-600.72,0.00019452,2]
[349756700,1737414644626,-1545.64,0.00019452,2]
[349756701,1737414644635,-807.86,0.00019452,2]
[349756702,1737414644644,-500.0,0.00019452,2]
[349756703,1737414644653,-500.0,0.00019452,2]
[349756704,1737414644663,-500.0,0.00019452,2]
[349756705,1737414644672,-500.0,0.00019452,2]
[349756706,1737414644682,-500.0,0.00019452,2]
[349756707,1737414644691,-517.43,0.00019452,2]
[349756708,1737414644700,-500.0,0.00019452,2]
[349756709,1737414644709,-537.85316069,0.00019452,2]
[349756710,1737414644718,-500.0,0.00019452,2]
[349756711,1737414644727,-500.0,0.00019452,2]
[349756712,1737414644737,-1290.23,0.00019452,2]
[349756713,1737414644746,-500.0,0.00019452,2]
[349756714,1737414644755,-500.0,0.00019452,2]
[349756715,1737414644764,-1839.16,0.00019452,2]
[349756716,1737414644773,-500.0,0.00019452,2]
[349756717,1737414644782,-1177.1,0.00019452,2]
[349756718,1737414644791,-1103.41,0.00019452,2]
[349756719,1737414644800,-500.0,0.00019452,2]
[349756720,1737414644809,-500.0,0.00019452,2]
[349756721,1737414644818,-1000.0,0.00019596,2]
[349756722,1737414644827,-9172.44796977,0.00019635,2]
[349756723,1737414644836,-1234.84,0.00019665,2]
[349756724,1737414644845,-9564.3090081,0.00019705,2]
[349756725,1737414644854,-150.0,0.00019725,2]
[349756726,1737414644864,-500.0,0.00019725,2]
[349756727,1737414644874,-1478.72,0.00019725,2]
[349756728,1737414644883,-506.92,0.00019725,2]
[349756729,1737414644892,-500.0,0.00019725,2]
[349756730,1737414644901,-500.0,0.00019725,2]
[349756731,1737414644911,-500.0,0.00019725,2]
[349756732,1737414644920,-646.84,0.00019725,2]
[349756733,1737414644929,-570.17,0.00019725,2]
[349756734,1737414644938,-500.0,0.00019725,2]
[349756735,1737414644947,-976.51,0.00019725,2]
[349756736,1737414644956,-698.99,0.00019725,2]
[349756737,1737414644965,-1663.5,0.00019725,2]
[349756738,1737414644974,-551.19,0.00019725,2]
[349756739,1737414644983,-3269.84,0.00019725,2]
[349756740,1737414644992,-518.89,0.00019725,2]
[349756741,1737414645002,-552.72,0.00019725,2]
[349756742,1737414645011,-1752.0,0.00019725,2]
[349756743,1737414645020,-500.0,0.00019725,2]
[349756744,1737414645029,-565.08,0.00019725,2]
[349756745,1737414645038,-872.02,0.00019725,2]
[349756746,1737414645047,-1444.7,0.00019725,2]
[349756747,1737414645057,-500.0,0.00019725,2]
[349756748,1737414645066,-1000.0,0.00019725,2]
[349756749,1737414645075,-1042.81,0.00019725,2]
[349756750,1737414645084,-500.0,0.00019725,2]
[349756751,1737414645093,-367.97180898,0.00019726,2]
[349756752,1737414645103,-210.51419676,0.00019726,2]
[349756753,1737414645112,-500.0,0.00019726,2]
[349756754,1737414645121,-500.0,0.00019726,2]
[349756755,1737414645131,-500.0,0.00019726,2]
[349756756,1737414645140,-500.0,0.00019726,2]
[349756757,1737414645150,-500.0,0.00019726,2]
[349756758,1737414645159,-500.0,0.00019726,2]
[349756759,1737414645172,-500.0,0.00019726,2]
[349756760,1737414645181,-500.0,0.00019726,2]
[349756761,1737414645191,-500.0,0.00019726,2]
[349756762,1737414645200,-500.0,0.00019726,2]
[349756763,1737414645210,-500.0,0.00019726,2]
[349756764,1737414645219,-500.0,0.00019726,2]
[349756765,1737414645228,-500.0,0.00019726,2]
[349756766,1737414645237,-500.0,0.00019726,2]
[349756767,1737414645247,-500.0,0.00019726,2]
[349756768,1737414645256,-500.0,0.00019726,2]
[349756769,1737414645266,-500.0,0.00019726,2]
[349756770,1737414645276,-500.0,0.00019726,2]
[349756771,1737414645285,-500.0,0.00019726,2]
[349756772,1737414645294,-500.0,0.00019726,2]
[349756773,1737414645303,-500.0,0.00019726,2]
[349756774,1737414645312,-500.0,0.00019726,2]
[349756775,1737414645322,-500.0,0.00019726,2]
[349756776,1737414645331,-500.0,0.00019726,2]
[349756777,1737414645341,-500.0,0.00019726,2]
[349756778,1737414645351,-885.11,0.00019726,2]
[349756779,1737414645360,-174.09317278,0.00019726,2]
[349756780,1737414645369,-500.0,0.00019726,2]
[349756781,1737414645379,-500.0,0.00019726,2]
[349756782,1737414645388,-500.0,0.00019726,2]
[349756783,1737414645397,-500.0,0.00019726,2]
[349756784,1737414645407,-500.0,0.00019726,2]
[349756786,1737414645416,-500.0,0.00019726,2]
[349756788,1737414645425,-500.0,0.00019726,2]
[349756790,1737414645435,-500.0,0.00019726,2]
[349756791,1737414645444,-500.0,0.00019726,2]
[349756792,1737414645454,-500.0,0.00019726,2]
[349756793,1737414645463,-500.0,0.00019726,2]
[349756794,1737414645473,-500.0,0.00019726,2]
[349756795,1737414645482,-500.0,0.00019726,2]
[349756796,1737414645491,-500.0,0.00019726,2]